[Event "Prague Festival Open 2022"]
[Site "Prague"]
[Date "2022.06.11"]
[Round "2.3"]
[White "Huzman, Alexander"]
[Black "Lindbol, Aleksander"]
[Result "1-0"]
[ECO "E05"]
[WhiteElo "2541"]
[BlackElo "2239"]
[Annotator "TA"]
[PlyCount "127"]
[EventDate "2022.06.10"]
[EventType "swiss"]
[EventCountry "CZE"]
[SourceTitle "playchess.com"]
[Source "ChessBase"]
[SourceQuality "1"]
[TimeControl "40/5400+30:1800+30"]

{[%evp 9,127,17,21,35,29,14,25,25,21,3,15,10,5,12,47,50,77,70,121,100,150,145,155,151,145,138,137,150,137,143,136,132,136,139,163,155,182,135,263,252,274,159,162,150,137,145,137,137,385,139,137,132,133,128,135,110,120,74,123,124,120,124,122,122,143,128,153,162,131,96,131,81,254,208,230,230,240,33,228,214,224,215,288,287,287,287,287,240,237,229,220,160,427,278,598,525,342,342,29955,29956,29946,1691,6713,5449,12359,7095,29960,29961,29975,29976,29977,29978,29978,29973,29976,29975,29974,29975,29974,12359]} 1. c4 {[%emt 0:00:05]} e6 {[%emt 0:03:08]} 2. g3 {[%emt 0:00:55]} Nf6 {[%emt 0:01:23]} 3. Bg2 {[%emt 0:00:24]} d5 {[%emt 0:00:51]} 4. d4 {[%emt 0:00:26]} Be7 {[%emt 0:02:30]} 5. Nf3 {[%emt 0:01:26]} dxc4 {[%emt 0:03:01]} 6. Qa4+ {[%emt 0:01:07] E05: Open Catalan: 5 Nf3 Be7.} c6 {[%emt 0:00:41]} 7. Qxc4 {[%emt 0:01:10]} b5 {[%emt 0:02:03]} 8. Qc2 {[%emt 0:14:30] White has an edge.} Bb7 {[%emt 0:03:49]} 9. Nbd2 {[%emt 0:00:41]} Nbd7 {[%emt 0:03:38]} 10. Nb3 {[%emt 0:00:50]} O-O {[%emt 0:09:39][%cal Oc6c5]} 11. O-O {[%emt 0:06:12]} Qb6 {[%emt 0:14:13]} (11... c5 $5) 12. Be3 {[%emt 0:03:42]} Nd5 {[%emt 0:06:14]} 13. Bg5 {[%emt 0:01:56]} f6 {[%emt 0:08:32]} (13... Nb4 $14 14. Qb1 f6) 14. Bd2 $16 {[%emt 0:00:28]} c5 {[%emt 0:03:11]} (14... a5 $142) 15. dxc5 $1 {[%emt 0:11:58] [#]} Bxc5 $146 {[%emt 0:09:04]} ({Predecessor:} 15... Nxc5 16. e4 Nxb3 17. Qxb3 Nc7 18. Be3 Bc5 19. Bxc5 Qxc5 20. Rac1 Qb6 21. Nd4 Rfe8 22. Rxc7 Qxc7 23. Nxe6 {1-0 (48) Ngo,T (1995)-Hoang,T (1910) Bac Giang 2017}) 16. Nxc5 {[%emt 0:04:24]} Qxc5 {[%emt 0:00:38]} 17. Qxc5 {[%emt 0:01:01]} Nxc5 {[%emt 0:00:06][%cal Bd7c5,Bc5b7,Bb7d6,Bd6e4,Be4c3,Bc3d1][%mdl 32]} 18. Nd4 {[%emt 0:00:05]} Nb6 {[%emt 0:03:14]} 19. Bxb7 {[%emt 0:05:21]} Nxb7 {[%emt 0:00:06]} 20. Nxe6 {[%emt 0:01:43]} Rfc8 {[%emt 0:01:59]} 21. b3 {[%emt 0:00:29] White is more active.} Nd6 {[%emt 0:04:07]} 22. Rfd1 {[%emt 0:16:42]} Ne4 {[%emt 0:09:28]} 23. Nd4 {[%emt 0:00:37]} (23. Ba5 $18) 23... a6 {[%emt 0:01:41]} (23... Nxd2 $16 24. Rxd2 Rc5) 24. Ba5 $18 {[%emt 0:03:22]} Nd5 {[%emt 0:00:32]} 25. Nf5 {[%emt 0:04:58]} (25. f3 $1 $18 {[%cal Rf3e4]}) 25... Nec3 $16 {[%emt 0:02:11]} 26. e4 {[%emt 0:06:09][%cal Be2e4,Be4d5,Bd5d6][%mdl 32]} Nxd1 {[%emt 0:03:27]} 27. exd5 {[%emt 0:00:09]} Nc3 {[%emt 0:00:06]} 28. d6 {[%emt 0:01:38] Ne7+ is the strong threat.} (28. Ne7+ Kf7 29. Nxc8 Rxc8 $14) 28... Ra7 {[%emt 0:00:14]} (28... Rc5 $16) 29. Kg2 $2 {[%emt 0:01:09]} (29. Ne7+ Rxe7 30. dxe7 Kf7 $14) (29. Re1 $1 $18 Nd5 30. Rd1) 29... g6 {[%emt 0:04:25]} 30. Ne7+ {[%emt 0:05:51]} Rxe7 {[%emt 0:00:09]} 31. dxe7 {[%emt 0:00:04][%mdl 4096] Endgame KRB-KRN} Nd5 {[%emt 0:00:04]} 32. Rd1 {[%emt 0:01:05]} Nxe7 {[%emt 0:00:08]} 33. Rd7 {[%emt 0:01:02]} (33. Bd8 $142 Nf5 34. Bxf6) 33... Nc6 {[%emt 0:00:19]} (33... Nf5 $142) 34. Bc3 $1 {[%emt 0:03:32]} Nb8 {[%emt 0:00:19][%csl LRc3,LRd7]} 35. Rb7 {[%emt 0:00:26]} ({But not} 35. Rd3 $6 Kf7 $11) 35... Rxc3 {[%emt 0:01:04]} 36. Rxb8+ {[%emt 0:00:03] KR-KR} Kg7 {[%emt 0:00:12]} 37. Rb6 {[%emt 0:00:10]} Rc2 {[%emt 0:00:33]} 38. Rxa6 {[%emt 0:00:04]} g5 {[%emt 0:00:45]} 39. g4 {[%emt 0:00:36]} Kg6 {[%emt 0:00:37]} 40. h3 {[%emt 0:00:10]} (40. a3 $142) 40... h6 $2 {[%emt 0:00:48]} (40... b4 $16) 41. b4 {[%emt 0:04:34]} Rb2 {[%emt 0:04:10]} 42. a3 {[%emt 0:00:07]} Rb3 {[%emt 0:02:04]} 43. f3 $2 {[%emt 0:00:22]} ({White should try} 43. Ra5 $18) 43... Kf7 $2 {[%emt 0:14:48]} (43... h5 $1 $14) 44. Kf2 $18 {[%emt 0:01:49]} Ke7 {[%emt 0:01:33]} 45. Ra5 {[%emt 0:03:54]} f5 {[%emt 0:07:12]} 46. Rxb5 {[%emt 0:08:02]} ({Not} 46. gxf5 Kf6 47. Ke2 (47. Rxb5 Rxa3 48. Kg3 h5 $16) 47... Rc3 48. Rxb5 Rxa3 49. Rb6+ Kxf5 $16) 46... fxg4 {[%emt 0:00:50]} 47. hxg4 {[%emt 0:00:18]} ({Weaker is} 47. fxg4 Rxa3 48. Rb7+ Kd8 $11) 47... Rxa3 {[%emt 0:00:03]} 48. Rf5 {[%emt 0:00:10]} Rb3 {[%emt 0:00:55] [#]} 49. b5 {[%emt 0:00:07]} Ke6 {[%emt 0:00:04] [#]} 50. Ke2 $1 {[%emt 0:00:14]} Rb4 $2 {[%emt 0:01:24]} (50... Kd7 $16 51. Kd2 Kc8) 51. Kd3 {[%emt 0:00:32]} h5 $2 {[%emt 0:00:28]} (51... Kd6 52. Kc3 Rb1) 52. Rxg5 {[%emt 0:00:22]} hxg4 {[%emt 0:00:05]} 53. fxg4 {[%emt 0:00:08] Threatens to win with Kc3.} Kf6 $2 {[%emt 0:00:06]} (53... Kd6 $18 54. Kc3 Rb1) 54. Kc3 {[%emt 0:01:05]} Rb1 {[%emt 0:00:26]} 55. Rf5+ {[%emt 0:00:16]} Ke6 {[%emt 0:00:06]} 56. Kc4 {[%emt 0:00:40] White wants to mate with Kc5.} Rg1 {[%emt 0:00:21]} 57. Rg5 {[%emt 0:01:03]} Kf6 {[%emt 0:00:25]} 58. Rd5 {[%emt 0:00:21] White mates.} Rxg4+ {[%emt 0:00:17]} 59. Kc5 {[%emt 0:00:02]} Ke6 {[%emt 0:00:07]} 60. b6 {[%emt 0:00:27]} Rg1 {[%emt 0:00:11]} 61. Rd2 {[%emt 0:00:41]} Rb1 {[%emt 0:00:45]} 62. Kc6 {[%emt 0:00:05]} Rc1+ {[%emt 0:00:06]} 63. Kb7 {[%emt 0:00:04]} Ke7 {[%emt 0:00:58]} 64. Kb8 {[%emt 0:00:06] Weighted Error Value: White=0.21 (precise) /Black=0.58} (64. Ra2 $142 Rb1 65. Ka7 Kf6 66. Ra5 Re1 67. b7 Re7 68. Ka8 Re5 69. Ra4) 1-0

[Event "Prague Festival Open 2022"]
[Site "Prague"]
[Date "2022.06.11"]
[Round "2.4"]
[White "Adarsh Tripathi"]
[Black "Stefansson, Hannes"]
[Result "0-1"]
[ECO "B42"]
[WhiteElo "2179"]
[BlackElo "2534"]
[Annotator "TA"]
[PlyCount "68"]
[EventDate "2022.06.10"]
[EventType "swiss"]
[EventCountry "CZE"]
[SourceTitle "playchess.com"]
[Source "ChessBase"]
[SourceQuality "1"]
[TimeControl "40/5400+30:1800+30"]

{[%evp 13,68,30,24,5,24,14,29,0,12,-25,-14,-14,-13,-45,0,-41,-45,-49,-47,-49,-53,-49,-46,-60,-62,-58,-55,-122,-131,-158,-154,-156,-158,-220,-221,-338,-320,-333,-295,-470,-489,-719,-714,-766,-765,-757,-744,-658,-610,-2236,-674,-1627,-1515,-1515,-1540,-1179,-1068]} 1. e4 {[%emt 0:00:03]} c5 {[%emt 0:01:26]} 2. Nf3 {[%emt 0:00:05]} e6 {[%emt 0:00:17]} 3. d4 {[%emt 0:00:04]} cxd4 {[%emt 0:00:06]} 4. Nxd4 {[%emt 0:00:04]} a6 {[%emt 0:00:27]} 5. Bd3 {[%emt 0:00:05]} g6 {[%emt 0:00:56]} 6. O-O {[%emt 0:05:11]} Bg7 {[%emt 0:00:33]} 7. c3 {[%emt 0:00:22]} Ne7 {[%emt 0:04:27]} 8. a4 {[%emt 0:01:26] B42: Sicilian: Kan Variation: 5 Bd3.} Nbc6 {[%emt 0:02:13] [#]} 9. Be3 $146 {[%emt 0:04:52]} ({Predecessor:} 9. Nb3 b6 10. Na3 O-O 11. Be3 d5 12. Qe2 Ne5 13. Bc2 Bd7 14. f4 Nc4 15. Nxc4 dxc4 16. Qxc4 {0-1 (41) Pruijssers,R (2561)-Quparadze,G (2476) Chess.com INT 2021}) 9... O-O {[%emt 0:02:47]} 10. Be2 {[%emt 0:00:04] White has an edge.} Qc7 {[%emt 0:04:30]} 11. f4 {[%emt 0:03:44]} d6 {[%emt 0:01:18]} 12. Nxc6 {[%emt 0:04:26]} bxc6 {[%emt 0:01:11][%cal Bb7c6,Bc6d5,Bd5d4][%mdl 32]} 13. Bd4 {[%emt 0:03:14]} Rb8 {[%emt 0:04:04]} 14. Bxg7 {[%emt 0:08:10]} Kxg7 {[%emt 0:00:06]} 15. Na3 {[%emt 0:00:50]} Qa7+ {[%emt 0:02:09]} (15... Rxb2 16. Nc4 Qa7+ 17. Kh1 $14) (15... d5 {is more complex.} 16. b4 Qa7+ 17. Kh1 dxe4 18. Qd6 a5) 16. Kh1 {[%emt 0:00:30]} d5 {[%emt 0:00:47]} (16... Rxb2 17. Nc4 Rb7 18. Qxd6 $14) 17. exd5 {[%emt 0:07:11]} cxd5 {[%emt 0:00:07]} 18. b4 {[%emt 0:04:04]} d4 $1 {[%emt 0:01:00]} 19. b5 {[%emt 0:00:37]} dxc3 {[%emt 0:02:58]} 20. Qc1 {[%emt 0:05:35] White is on the road to losing.} ({White should play} 20. Qd6 $15) 20... Nd5 $17 {[%emt 0:12:27]} 21. Bc4 {[%emt 0:00:18]} Qc5 $1 {[%emt 0:04:05] Strongly threatening ...axb5.} 22. Rf3 {[%emt 0:02:11]} axb5 {[%emt 0:00:40] Black is more active.} 23. Bxd5 {[%emt 0:01:49]} (23. axb5 $17 {was worth a try.} Bb7 24. Bxd5 Qxd5 25. Qxc3+ Kg8 26. Qd3) 23... b4 $1 $19 {[%emt 0:01:15]} (23... Qxd5 24. Nxb5 Bb7 25. Qxc3+ Kg8 26. Rf2 $17) (23... exd5 24. Rxc3 Qb4 25. Nxb5 $17) (23... bxa4 24. Bc4 $16) 24. Be4 {[%emt 0:05:48] [#]} (24. Bb3 {was the only defense.} Bb7 25. Rg3) 24... f5 $1 {[%emt 0:01:53]} ({Stronger than} 24... bxa3 25. Rxc3 (25. Rxa3 Qd4 $17) 25... Qd4 26. Bf3 $17 (26. Rc4 Qb2 $17)) 25. Bc2 {[%emt 0:01:09]} Bb7 {[%emt 0:02:10]} (25... bxa3 26. Rxa3 Bb7 27. Raxc3 $11) 26. Qe3 {[%emt 0:03:59]} (26. Rg3 {keeps fighting.} Rfd8 27. Bb3) 26... Rfc8 {[%emt 0:08:20] Black is clearly winning.} ({And not} 26... Qxe3 27. Rxe3 bxa3 28. Rxc3 $19) 27. Qxc5 {[%emt 0:30:34]} (27. Nb5 $142 Bxf3 28. Qxf3) 27... Rxc5 {[%emt 0:00:31]} 28. Rff1 {[%emt 0:02:53]} bxa3 {[%emt 0:00:29]} 29. Rfb1 {[%emt 0:00:07]} Rcc8 {[%emt 0:02:43] White must now prevent ...Be4.} 30. Rxa3 {[%emt 0:00:18] [#]} Be4 $1 {[%emt 0:01:23]} 31. Bxe4 {[%emt 0:00:05] And now Rxb8 would win.} fxe4 {[%emt 0:00:06]} (31... c2 $142 32. Rg1 c1=Q) 32. Rc1 {[%emt 0:00:14]} c2 {[%emt 0:00:57] ( -> ...Rb1)} 33. Raa1 {[%emt 0:00:40] Prevents Rb1.} Rb2 {[%emt 0:00:42] aiming for ...Rcb8.} 34. Kg1 {[%emt 0:00:06]} Rcb8 {[%emt 0:00:41] Weighted Error Value: White=0.77/Black=0.15 (very precise)} 0-1

[Event "Prague Festival Open 2022"]
[Site "Prague"]
[Date "2022.06.11"]
[Round "2.5"]
[White "Iniyan, P."]
[Black "Knudsen, Simon"]
[Result "1-0"]
[ECO "D85"]
[WhiteElo "2518"]
[BlackElo "2242"]
[Annotator "TA"]
[PlyCount "65"]
[EventDate "2022.06.10"]
[EventType "swiss"]
[EventCountry "CZE"]
[SourceTitle "playchess.com"]
[Source "ChessBase"]
[SourceQuality "1"]
[TimeControl "40/5400+30:1800+30"]

{[%evp 17,65,13,12,0,0,0,0,27,12,0,230,229,225,214,217,218,285,144,131,-26,-40,-91,-100,-106,-117,-133,-110,-99,-95,-185,-206,-200,-188,-224,-187,-181,-201,-327,94,81,75,81,85,0,670,670,29990,29991,29991,1395]} 1. d4 {[%emt 0:03:26]} Nf6 {[%emt 0:01:14]} 2. c4 {[%emt 0:00:09]} g6 {[%emt 0:00:10]} 3. Nc3 {[%emt 0:00:06]} d5 {[%emt 0:00:06]} 4. cxd5 {[%emt 0:00:13]} Nxd5 {[%emt 0:00:11]} 5. e4 {[%emt 0:00:08]} Nxc3 {[%emt 0:00:06]} 6. bxc3 {[%emt 0:00:07]} Bg7 {[%emt 0:00:08]} 7. Qa4+ {[%emt 0:00:06]} Nd7 {[%emt 0:04:28]} 8. Nf3 {[%emt 0:00:14]} O-O {[%emt 0:01:57]} 9. Be2 {[%emt 0:00:06]} c5 {[%emt 0:11:53]} 10. O-O {[%emt 0:00:11] D85: Exchange Grünfeld: Unusual White 7th moves and lines with 7 Nf3.} cxd4 {[%emt 0:11:17]} 11. cxd4 {[%emt 0:00:08]} Nc5 {[%emt 0:00:21]} 12. dxc5 {[%emt 0:00:11] The position is equal.} Bxa1 {[%emt 0:00:10]} 13. e5 $1 {[%emt 0:00:08] Threatens to win with Bh6.} f6 $2 {[%emt 0:13:19]} (13... Qc7 $11 {and Black is okay.} 14. Qf4 Bc3) 14. Bh6 $18 {[%emt 0:07:28]} Bxe5 {[%emt 0:02:48][%cal Oc8e6]} 15. Nxe5 {[%emt 0:00:26]} fxe5 {[%emt 0:01:33]} 16. Rd1 {[%emt 0:00:08] Dancing on a razor blade.} Qe8 {[%emt 0:16:27] [#]} 17. Qb3+ $146 {[%emt 0:00:09]} ({Only move:} 17. Bc4+ $1 $18 Kh8 18. c6 (18. Bb5 Qf7 $14)) ({Predecessor:} 17. Bc4+ Kh8 18. Bb5 Qf7 19. Bxf8 Qxf8 20. Qe4 Bf5 21. Qxb7 Rb8 22. Qa6 Qc8 23. c6 {1-0 (39) Moiseenko,A (2703)-Laylo,D (2497) Jakarta 2013}) 17... Rf7 $16 {[%emt 0:12:40]} 18. Bb5 $2 {[%emt 0:00:25] White is much more active. The black rooks are badly placed. This bishop pair is nice.} (18. Bc4 $1 $16 {[%cal Rc4f7]} e6 19. Rd6) 18... Be6 $11 {[%emt 0:00:47]} 19. Qb2 {[%emt 0:05:31] [#]} ({White should try} 19. Bxe8 $15 Bxb3 20. Bxf7+ Bxf7 21. Rd7) 19... Qb8 $1 $17 {[%emt 0:06:44]} 20. Re1 {[%emt 0:00:15]} Qc7 {[%emt 0:03:29]} 21. Rxe5 {[%emt 0:02:28] [#]} Bxa2 {[%emt 0:02:41][%cal Oa8d8][%mdl 512]} 22. f4 {[%emt 0:03:27]} (22. h4 Rd8) 22... Qa5 {[%emt 0:01:47] Strongly threatening ...Rd8.} 23. Bd7 {[%emt 0:03:37] [#]} (23. h3 $17 {was necessary.}) 23... Bd5 $1 $19 {[%emt 0:03:00][%mdl 512]} 24. h4 {[%emt 0:05:16]} Qxc5+ {[%emt 0:00:32]} 25. Kh2 {[%emt 0:00:05] Hoping for Be6.} Qd6 {[%emt 0:00:28] Against Be6} 26. Bh3 {[%emt 0:00:06]} a5 {[%emt 0:01:37]} 27. Qd2 {[%emt 0:07:16]} (27. Qb5 $142 Rd8 28. Qxa5) 27... Bc6 $2 {[%emt 0:01:05]} (27... Bc4 $19 28. Rxa5 Rxa5 29. Qxa5 Rxf4 30. Bxf4 Qxf4+ 31. g3 Qf2+ 32. Bg2 b5) 28. Qa2 $16 {[%emt 0:00:56][%mdl 1024] And now Be6 would win. White has strong compensation.} a4 {[%emt 0:02:29][%cal Oa8f8]} 29. Be6 {[%emt 0:00:18]} Be8 {[%emt 0:00:06][%cal Ob7b5]} 30. Qa1 $40 {[%emt 0:00:44][%mdl 128] White mounts an attack.} (30. Re4 $16 {aiming for Qb2.} Ra6 31. Bxf7+ Bxf7 32. Qb2) 30... Bd7 $2 {[%emt 0:01:06][%mdl 8192] [#]} 31. Ra5 $3 $18 {[%emt 0:00:12][%csl Gh6][%cal Ra1g7][%mdl 512]} Qxe6 {[%emt 0:00:27]} (31... Qxf4+ 32. Bxf4) 32. Rxa8+ {[%emt 0:00:07]} Bc8 {[%emt 0:00:04]} 33. Qc3 {[%emt 0:00:10] Weighted Error Value: White=0.34/Black=1.00} (33. Qd4 $142 Qf5 34. Qc4 Qxf4+ 35. Bxf4 Kg7 36. Rxc8 Rxf4 37. Qxf4 g5 38. Qe5+ Kg6 39. Rg8+ Kf7 40. Rg7+ Kf8 41. Qxe7#) 1-0

[Event "Prague Festival Open 2022"]
[Site "Prague"]
[Date "2022.06.11"]
[Round "2.6"]
[White "Alsina Leal, Daniel"]
[Black "Weber, Samuel"]
[Result "1-0"]
[ECO "B75"]
[WhiteElo "2508"]
[BlackElo "2263"]
[Annotator "TA"]
[PlyCount "139"]
[EventDate "2022.06.10"]
[EventType "swiss"]
[EventCountry "CZE"]
[SourceTitle "playchess.com"]
[Source "ChessBase"]
[SourceQuality "1"]
[TimeControl "40/5400+30:1800+30"]

{[%evp 14,139,57,58,71,65,72,70,67,36,44,34,50,8,25,0,-8,0,0,0,0,0,0,-11,-5,-5,-11,-50,-54,-56,14,-42,0,-32,-32,-41,-27,-28,-28,-27,-34,-37,-5,-10,-10,-10,-10,-10,-8,-16,0,-13,0,-10,0,-2,0,-6,-6,-21,0,0,0,0,0,-13,7,8,5,8,7,8,26,26,151,18,22,17,120,114,151,154,211,212,220,215,360,360,518,524,514,412,416,423,423,423,423,423,423,431,445,445,526,520,29980,29981,2200,1472,1441,1430,1369,1356,1200,1159,12829,5302,4794,2217,29982,29983,29983,29983,29983,29984,29985,29985,29978,29978]} 1. e4 {[%emt 0:01:19]} c5 {[%emt 0:00:10]} 2. Nf3 {[%emt 0:00:09]} d6 {[%emt 0:00:04]} 3. d4 {[%emt 0:00:35]} cxd4 {[%emt 0:00:09]} 4. Nxd4 {[%emt 0:00:07]} Nf6 {[%emt 0:00:06]} 5. Nc3 {[%emt 0:00:05]} g6 {[%emt 0:00:12]} 6. Be3 {[%emt 0:01:25]} Bg7 {[%emt 0:00:23]} 7. f3 {[%emt 0:00:36]} a6 {[%emt 0:00:07]} 8. Qd2 {[%emt 0:03:30]} h5 {[%emt 0:01:01] B75: Sicilian Dragon: Yugoslav Attack, Miscellaneous.} 9. Be2 {[%emt 0:01:54]} Nbd7 {[%emt 0:01:12]} 10. O-O {[%emt 0:02:50]} O-O {[%emt 0:02:21] White is slightly better.} 11. Kh1 {[%emt 0:05:18] 0x0.001b6c97a97ddp-1022s more active pieces. The black rooks are badly placed.} Qc7 {[%emt 0:07:03]} 12. a4 {[%emt 0:14:38]} Ne5 {[%emt 0:07:02]} 13. b3 {[%emt 0:05:26]} e6 {[%emt 0:04:24] [#]} 14. f4 $146 {[%emt 0:15:03]} (14. Bg5 $5 {[%cal Ra1d1]}) ({Predecessor:} 14. a5 Bd7 15. Na4 Bxa4 16. Rxa4 d5 17. exd5 Nxd5 18. f4 Nxe3 19. Qxe3 Ng4 20. Qe4 Bxd4 21. Rxd4 Qxa5 22. Bxg4 hxg4 23. Qxb7 Rac8 {½-½ (23) Saric,I (2637)-Rezan,S (2438) Sibenik 2012}) 14... Neg4 {[%emt 0:07:30]} 15. Bxg4 {[%emt 0:00:41]} Nxg4 {[%emt 0:00:21]} 16. Bg1 {[%emt 0:00:06]} Bd7 {[%emt 0:00:08][%cal Bc8d7,Bd7c6,Bc6d5][%mdl 32]} 17. h3 {[%emt 0:00:49]} Nf6 {[%emt 0:04:39]} 18. Rf3 {[%emt 0:07:48]} Rac8 {[%emt 0:19:02]} 19. f5 {[%emt 0:03:19]} e5 {[%emt 0:01:01]} 20. Nde2 {[%emt 0:04:04]} (20. fxg6 {feels hotter.} exd4 21. Bxd4 fxg6 22. Raf1) 20... Bc6 $1 {[%emt 0:03:10]} 21. fxg6 {[%emt 0:08:15]} fxg6 {[%emt 0:03:00]} (21... Nxe4 $15 22. gxf7+ Rxf7 23. Nxe4 Bxe4 24. Rxf7 Qxf7) 22. Qe3 {[%emt 0:02:38]} (22. Qd3 $1 $11) 22... d5 {[%emt 0:03:51]} (22... b6 {looks sharper.} 23. Rd1 b5 24. axb5 axb5 25. b4 Qd7) 23. exd5 {[%emt 0:02:25]} (23. Rxf6 $5 Rxf6 24. exd5 $11) 23... Nxd5 {[%emt 0:00:17]} 24. Rxf8+ {[%emt 0:01:37]} Rxf8 {[%emt 0:00:30]} 25. Nxd5 {[%emt 0:00:04]} Bxd5 {[%emt 0:00:05] A strong pair of Bishops.} 26. c4 {[%emt 0:01:37]} Bc6 {[%emt 0:01:22]} 27. Nc3 {[%emt 0:01:15]} Qf7 {[%emt 0:02:37]} 28. Rd1 {[%emt 0:02:03] Inhibits Rd8.} Qf5 {[%emt 0:07:14] And now ...Qc2 would win.} 29. Nd5 {[%emt 0:01:01]} Rf7 {[%emt 0:02:18] Prevents Ne7+.} 30. Bh2 {[%emt 0:07:24]} Rd7 {[%emt 0:03:42]} 31. Qe2 {[%emt 0:03:12]} Qe6 {[%emt 0:02:50][%cal Rc6d5]} 32. Qe4 {[%emt 0:00:36]} Qf5 {[%emt 0:00:17]} 33. Qe2 {[%emt 0:00:23]} Qe6 {[%emt 0:00:32][%cal Rc6d5]} 34. Bg1 {[%emt 0:02:01]} Kh7 {[%emt 0:01:30]} 35. Qe4 {[%emt 0:00:13]} Qf5 {[%emt 0:00:20]} 36. Qe2 {[%emt 0:00:14]} Qe6 {[%emt 0:03:14]} (36... b5 $5) 37. Qd2 {[%emt 0:01:53]} Bh6 {[%emt 0:06:27]} 38. Qd3 {[%emt 0:00:05]} e4 {[%emt 0:01:31]} 39. Qd4 {[%emt 0:01:40]} e3 {[%emt 0:00:14]} 40. Nf6+ {[%emt 0:01:31]} Qxf6 $1 {[%emt 0:00:21]} 41. Qxf6 {[%emt 0:30:08] Threatens to win with Rxd7+.} Rxd1 {[%emt 0:30:04]} 42. Qe7+ {[%emt 0:00:00]} Kh8 {[%emt 0:00:00]} 43. b4 {[%emt 0:00:00]} Bxa4 {[%emt 0:00:00] [#]} (43... e2 $1 $11 44. Qxe2 Rd2) 44. Qf6+ {[%emt 0:00:00]} (44. Qe4 $1 $16 {[%cal Re4g6]} Kh7 45. Kh2 (45. Qxb7+ Bg7 $14)) 44... Kh7 $11 {[%emt 0:00:00]} 45. Kh2 {[%emt 0:00:00]} Bg7 {[%emt 0:00:00]} (45... Rd7 $11 {keeps the balance.}) 46. Qe7 $16 {[%emt 0:00:00] White stays focused until the end.} Bc6 {[%emt 0:00:00]} 47. Bxe3 {[%emt 0:00:00]} Re1 {[%emt 0:01:15] [#]} (47... Rd7 $16 {might work better.} 48. Qg5 Rf7) 48. g4 $1 $18 {[%emt 0:00:00] Hoping for gxh5.} Re2+ {[%emt 0:03:47]} 49. Kg3 {[%emt 0:00:00] gxh5 is the strong threat. Really sharp!} hxg4 {[%emt 0:00:24]} 50. hxg4 {[%emt 0:00:00]} ({Less strong is} 50. Kxg4 Kg8 51. b5 (51. Kg5 Rg2+ 52. Kh4 Re2 $16) 51... axb5 $14) 50... Rg2+ {[%emt 0:04:46]} (50... Re1 $142 51. Qh4+ Kg8) 51. Kf4 {[%emt 0:00:00]} Re2 {[%emt 0:00:22]} 52. Qh4+ {[%emt 0:03:09]} Kg8 {[%emt 0:00:13]} 53. Qd8+ {[%emt 0:00:21]} Kh7 {[%emt 0:01:34][%cal Og6g5]} 54. Qd3 {[%emt 0:00:37]} Re1 {[%emt 0:01:10]} 55. b5 {[%emt 0:03:13]} axb5 {[%emt 0:00:01]} 56. cxb5 {[%emt 0:00:05]} Be8 {[%emt 0:01:39]} 57. Kf3 {[%emt 0:00:26]} Ra1 {[%emt 0:00:46]} 58. Qe2 {[%emt 0:01:01]} Rb1 {[%emt 0:00:27]} (58... Ra8 $18 59. Qh2+ Kg8) 59. Qh2+ {[%emt 0:00:11]} Kg8 {[%emt 0:00:06]} 60. Qb8 {[%emt 0:00:20]} Rf1+ {[%emt 0:00:52]} 61. Kg2 {[%emt 0:01:01]} Rf8 {[%emt 0:00:09]} 62. Qxb7 {[%emt 0:00:08]} Bf7 {[%emt 0:00:13]} 63. b6 {[%emt 0:00:38]} Be5 {[%emt 0:01:00]} 64. Qd7 {[%emt 0:00:39]} Re8 {[%emt 0:00:45]} 65. Bd4 {[%emt 0:00:34] White threatens Bxe5 and mate.} Bxd4 {[%emt 0:00:37]} 66. Qxd4 {[%emt 0:00:05] White mates.} Re7 {[%emt 0:00:31]} 67. Qd8+ {[%emt 0:00:33]} Re8 {[%emt 0:00:01]} 68. Qd7 {[%emt 0:00:21]} Kf8 {[%emt 0:01:00]} 69. Kf2 {[%emt 0:00:26]} Be6 {[%emt 0:00:13] [#]} 70. Qxe8+ $3 {[%emt 0:00:34][%mdl 512] Weighted Error Value: White=0.13 (very precise) /Black=0.31} 1-0